fUSD/lending_fUSD_20250811
["ID","MTS","AMOUNT","RATE_DAILY","PERIOD"]
[378512496,1754890260285,-1574.069305,0.0002,2]
[378512497,1754890260294,-1574.069305,0.0002,2]
[378512498,1754890260303,-1574.069305,0.0002,2]
[378512499,1754890260312,-1574.069305,0.0002,2]
[378512500,1754890260321,-1574.069314,0.0002,2]
[378512501,1754890260330,-151.0,0.0002,2]
[378512502,1754890260340,-151.0,0.0002,2]
[378512503,1754890260350,-25074.42593459,0.0002,2]
[378512504,1754890260359,-151.0,0.0002,2]
[378512505,1754890260369,-151.0,0.0002,2]
[378512506,1754890260378,-5730.62329591,0.0002,2]
[378512507,1754890260387,-1268.56885881,0.0002,2]
[378512508,1754890260396,-151.0,0.0002,2]
[378512509,1754890260405,-7030.087974,0.0002,2]
[378512510,1754890260415,-3145.25212706,0.0002,2]
[378512511,1754890260424,-7030.087974,0.0002,2]
[378512512,1754890260433,-7140.97052184,0.0002,5]
[378512513,1754890260443,-1023.78635244,0.0002,2]
[378512514,1754890260452,-1488.48829104,0.0002,2]
[378512515,1754890260461,-90172.7460166,0.0002,2]
[378512516,1754890260470,-48508.4677665,0.0002,2]
[378512517,1754890260479,-746.79028632,0.0002,2]
[378512518,1754890260489,-4000.0,0.0002,4]
[378512519,1754890260498,-4000.0,0.0002,4]
[378512520,1754890260512,-4000.0,0.0002,4]
[378512521,1754890260522,-4000.0,0.0002,4]
[378512522,1754890260531,-5000.0,0.00020005,2]
[378512523,1754890260540,-5021.72018444,0.0002001,2]
[378512524,1754890260549,-5772.0,0.0002001,2]
[378512525,1754890260558,-222.873055,0.00020012,2]
[378512526,1754890260567,-222.873055,0.00020012,2]
[378512527,1754890260577,-151.0,0.00020012,2]
[378512528,1754890260586,-151.0,0.00020012,2]
[378512529,1754890260595,-301.81624,0.00020012,2]
[378512530,1754890260604,-293.965612,0.00020012,2]
[378512531,1754890260613,-293.965612,0.00020012,2]
[378512532,1754890260623,-151.0,0.00020012,2]
[378512533,1754890260632,-151.0,0.00020012,2]
[378512534,1754890260641,-401.379728,0.00020012,2]
[378512535,1754890260651,-401.379728,0.00020012,2]
[378512536,1754890260661,-151.0,0.00020012,2]
[378512537,1754890260672,-151.0,0.00020012,2]
[378512538,1754890260681,-196.625057,0.00020012,2]
[378512539,1754890260690,-196.625057,0.00020012,2]
[378512540,1754890260699,-299.335826,0.00020012,2]
[378512541,1754890260709,-688.960651,0.00020012,2]
[378512542,1754890260718,-688.960651,0.00020012,2]
[378512543,1754890260727,-388.703329,0.00020012,2]
[378512544,1754890260737,-388.703329,0.00020012,2]
[378512545,1754890260747,-151.0,0.00020012,2]
[378512546,1754890260756,-3360.120026,0.00020012,2]
[378512547,1754890260766,-3360.120026,0.00020012,2]
[378512548,1754890260775,-1007.50392,0.00020012,2]
[378512549,1754890260784,-1007.50392,0.00020012,2]
[378512550,1754890260794,-151.0,0.00020012,2]
[378512551,1754890260804,-151.0,0.00020012,2]
[378512552,1754890260813,-151.0,0.00020013,2]
[378512553,1754890260822,-732.263915,0.00020013,2]
[378512554,1754890260832,-732.263915,0.00020013,2]
[378512555,1754890260842,-151.0,0.00020013,2]
[378512556,1754890260851,-151.0,0.00020013,2]
[378512557,1754890260860,-151.0,0.00020013,2]
[378512558,1754890260870,-289.858388,0.00020013,2]
[378512559,1754890260879,-289.858388,0.00020013,2]
[378512560,1754890260888,-315.174228,0.00020013,2]
[378512561,1754890260897,-315.174228,0.00020013,2]
[378512562,1754890260907,-151.0,0.00020013,2]
[378512563,1754890260916,-151.0,0.00020013,2]
[378512564,1754890260925,-167.40905843,0.0002002,2]
[378512565,1754890260935,-1337.30371513,0.00020023,2]
[378512566,1754890260944,-500.0,0.00020026,2]
[378512567,1754890260954,-517.0,0.00020027,7]
[378512568,1754890260963,-5000.0,0.00020037,2]
[378512569,1754890260973,-2719.3,0.00020141,2]
[378512570,1754890260984,-151.0,0.00020181,2]
[378512571,1754890260993,-199.919864,0.00020181,2]
[378512572,1754890261002,-199.919864,0.00020181,2]
[378512573,1754890261012,-151.0,0.00020181,2]
[378512574,1754890261022,-151.0,0.00020181,2]
[378512575,1754890261031,-199.919864,0.00020181,2]
[378512576,1754890261040,-199.919865,0.00020181,2]
[378512577,1754890261049,-2643.368854,0.00020181,2]
[378512578,1754890261059,-2643.368854,0.00020181,2]
[378512579,1754890261068,-2643.368854,0.00020181,2]
[378512580,1754890261078,-2643.368854,0.00020181,2]
[378512581,1754890261087,-2643.368854,0.00020181,2]
[378512582,1754890261096,-2643.368863,0.00020181,2]
[378512583,1754890261105,-1074.407428,0.00020181,2]
[378512584,1754890261114,-1074.407428,0.00020181,2]
[378512585,1754890261124,-1074.407428,0.00020181,2]
[378512586,1754890261133,-1074.407428,0.00020181,2]
[378512587,1754890261142,-1074.407428,0.00020181,2]
[378512588,1754890261151,-1074.407428,0.00020181,2]
[378512589,1754890261159,-151.0,0.00020181,2]
[378512590,1754890261169,-151.0,0.00020181,2]
[378512591,1754890261178,-151.0,0.00020181,2]
[378512592,1754890261187,-340.943643,0.00020181,2]
[378512593,1754890261196,-340.943643,0.00020181,2]
[378512594,1754890261206,-340.943643,0.00020181,2]
[378512595,1754890261215,-340.943643,0.00020181,2]
[378512596,1754890261223,-340.943643,0.00020181,2]
[378512597,1754890261232,-340.943648,0.00020181,2]
[378512598,1754890261241,-4039.536178,0.00020181,2]
[378512599,1754890261251,-4039.536178,0.00020181,2]
[378512600,1754890261262,-4039.536178,0.00020181,2]
[378512601,1754890261271,-4039.536178,0.00020181,2]
[378512602,1754890261280,-4039.536178,0.00020181,2]
[378512603,1754890261290,-4039.536175,0.00020181,2]
[378512604,1754890261300,-151.0,0.00020181,2]
[378512605,1754890261310,-330.223621,0.00020181,2]
[378512606,1754890261320,-330.223621,0.00020181,2]
[378512607,1754890261330,-151.0,0.00020181,2]
[378512608,1754890261338,-151.0,0.00020181,2]
[378512609,1754890261347,-151.0,0.00020181,2]
[378512610,1754890261356,-151.0,0.00020181,2]
[378512611,1754890261365,-250.510339,0.00020181,2]
[378512612,1754890261374,-337.972698,0.00020181,2]
[378512613,1754890261383,-337.972698,0.00020181,2]
[378512614,1754890261392,-151.0,0.00020181,2]
[378512615,1754890261401,-151.0,0.00020181,2]
[378512616,1754890261410,-165.353929,0.00020183,2]
[378512617,1754890261420,-165.353929,0.00020183,2]
[378512618,1754890261429,-151.0,0.00020183,2]
[378512619,1754890261438,-260.519198,0.00020183,2]
[378512620,1754890261447,-194.003862,0.00020183,2]
[378512621,1754890261456,-194.003862,0.00020183,2]
[378512622,1754890261465,-151.0,0.00020183,2]
[378512623,1754890261474,-151.0,0.00020183,2]
[378512624,1754890261483,-195.474766,0.00020183,2]
[378512625,1754890261492,-195.474766,0.00020183,2]
[378512626,1754890261501,-216.042072,0.00020183,2]
[378512627,1754890261511,-216.042072,0.00020183,2]
[378512628,1754890261520,-216.042072,0.00020183,2]
[378512629,1754890261529,-216.042077,0.00020183,2]
[378512630,1754890261539,-1000.0,0.00020186,2]
[378512631,1754890261547,-1000.0,0.00020186,2]
[378512632,1754890261556,-1000.0,0.00020186,2]
[378512633,1754890261565,-1000.0,0.00020186,2]
[378512634,1754890261575,-1000.0,0.00020186,2]
[378512635,1754890261584,-1000.0,0.00020186,2]
[378512636,1754890261592,-1000.0,0.00020186,2]
[378512637,1754890261601,-1000.0,0.00020186,2]
[378512638,1754890261610,-1000.0,0.00020186,2]
[378512639,1754890261619,-1000.0,0.00020186,2]
[378512640,1754890261628,-1000.0,0.00020186,2]
[378512641,1754890261637,-1000.0,0.00020186,2]
[378512642,1754890261646,-1000.0,0.00020186,2]
[378512643,1754890261655,-1000.0,0.00020186,2]
[378512644,1754890261666,-1000.0,0.00020186,2]
[378512645,1754890261676,-1000.0,0.00020186,2]
[378512646,1754890261685,-1000.0,0.00020186,2]
[378512647,1754890261695,-1000.0,0.00020186,2]
[378512648,1754890261704,-281.3955,0.00020186,2]
[378512649,1754890261714,-1000.0,0.00020186,2]
[378512650,1754890261723,-1000.0,0.00020186,2]
[378512651,1754890261732,-1000.0,0.00020186,2]
[378512652,1754890261744,-1000.0,0.00020186,2]
[378512653,1754890261758,-1000.0,0.00020186,2]
[378512654,1754890261767,-1000.0,0.00020186,2]
[378512655,1754890261776,-1000.0,0.00020186,2]
[378512656,1754890261785,-1000.0,0.00020186,2]
[378512657,1754890261794,-1000.0,0.00020186,2]
[378512658,1754890261803,-1000.0,0.00020186,2]
[378512659,1754890261812,-1000.0,0.00020186,2]
[378512660,1754890261822,-971.8765,0.00020186,2]
[378512661,1754890261831,-250.79,0.00020187,2]
[378512662,1754890261841,-1000.0,0.000202,2]
[378512663,1754890261851,-5000.0,0.00020213,2]
[378512664,1754890261861,-445.966927,0.00020219,2]
[378512665,1754890261871,-445.966927,0.00020219,2]
[378512666,1754890261881,-151.0,0.00020219,2]
[378512667,1754890261891,-1223.075257,0.00020219,2]
[378512668,1754890261900,-151.0,0.00020219,2]
[378512669,1754890261910,-250.0,0.00020221,2]
[378512670,1754890261920,-2500.77,0.00020248,2]
[378512672,1754890261930,-151.0,0.00020259,2]
[378512673,1754890262071,-296.068264,0.00020259,2]
[378512674,1754890262081,-296.068264,0.00020259,2]
[378512675,1754890262091,-198.315148,0.00020259,2]
[378512676,1754890262101,-198.315148,0.00020259,2]
[378512677,1754890262111,-1731.537162,0.00020259,2]
[378512678,1754890262121,-1731.537162,0.00020259,2]
[378512679,1754890262130,-3500.0,0.0002026,2]
[378512680,1754890262140,-193.68,0.00020268,2]
[378512681,1754890262149,-193.68,0.00020268,2]
[378512682,1754890262159,-279.392465,0.00020268,2]
[378512683,1754890262169,-279.392465,0.00020268,2]
[378512684,1754890262179,-516.224086,0.00020268,2]
[378512685,1754890262189,-516.224086,0.00020268,2]
[378512686,1754890262198,-348.307943,0.00020268,2]
[378512687,1754890262208,-348.307943,0.00020268,2]
[378512688,1754890262218,-151.0,0.00020268,2]
[378512689,1754890262227,-177.351646,0.00020268,2]
[378512690,1754890262237,-177.351646,0.00020268,2]
[378512691,1754890262247,-317.599438,0.00020268,2]
[378512692,1754890262259,-317.599438,0.00020268,2]
[378512693,1754890262269,-157.575299,0.00020268,2]
[378512694,1754890262278,-157.575299,0.00020268,2]
[378512695,1754890262287,-485.864058,0.00020268,2]
[378512696,1754890262297,-485.864058,0.00020268,2]
[378512697,1754890262307,-151.0,0.00020268,2]
[378512698,1754890262316,-198.409545,0.00020268,2]
[378512699,1754890262326,-247.193135,0.00020268,2]
[378512700,1754890262336,-574.407,0.00020268,2]
[378512701,1754890262346,-574.407,0.00020268,2]
[378512702,1754890262355,-574.407,0.00020268,2]
[378512703,1754890262365,-574.40699,0.00020268,2]
[378512704,1754890262375,-1386.868697,0.00020268,2]
[378512705,1754890262384,-1386.868697,0.00020268,2]
[378512706,1754890262393,-10000.0,0.00020268,2]
[378512707,1754890262404,-10000.0,0.00020268,2]
[378512708,1754890262413,-10000.0,0.00020268,2]
[378512709,1754890262423,-10000.0,0.00020268,2]
[378512710,1754890262432,-372.290849,0.00020268,2]
[378512711,1754890262442,-372.290849,0.00020268,2]
[378512712,1754890262452,-151.0,0.00020268,2]
[378512713,1754890262462,-151.0,0.00020268,2]
[378512714,1754890262472,-500.0,0.0002027,2]
[378512715,1754890262481,-1301.86759728,0.0002027,2]
[378512716,1754890262491,-261.044515,0.00020273,2]
[378512717,1754890262501,-261.044515,0.00020273,2]
[378512718,1754890262512,-261.044515,0.00020273,2]
[378512719,1754890262522,-261.044521,0.00020273,2]
[378512720,1754890262532,-763.169563,0.00020273,2]
[378512721,1754890262541,-763.169563,0.00020273,2]
[378512722,1754890262550,-763.169563,0.00020273,2]
[378512723,1754890262560,-763.169559,0.00020273,2]
[378512724,1754890262570,-1008.99,0.00020273,2]
[378512725,1754890262579,-5000.0,0.00020282,2]
[378512726,1754890262589,-151.0,0.00020286,2]
[378512727,1754890262598,-222.873055,0.00020286,2]
[378512728,1754890262607,-222.873055,0.00020286,2]
[378512729,1754890262617,-151.0,0.00020286,2]
[378512730,1754890262626,-151.0,0.00020286,2]
[378512731,1754890262636,-293.965612,0.00020286,2]
[378512732,1754890262645,-293.965612,0.00020286,2]
[378512733,1754890262654,-151.0,0.00020286,2]
[378512734,1754890262665,-151.0,0.00020286,2]
[378512735,1754890262677,-401.379728,0.00020286,2]
[378512736,1754890262697,-401.379728,0.00020286,2]
[378512737,1754890262707,-151.0,0.00020286,2]
[378512738,1754890262716,-151.0,0.00020286,2]
[378512739,1754890262725,-196.625057,0.00020286,2]
[378512740,1754890262735,-196.625057,0.00020286,2]
[378512741,1754890262746,-200.71376,0.00020287,2]
[378512742,1754890262756,-151.0,0.00020287,2]
[378512743,1754890262766,-151.0,0.00020287,2]
[378512744,1754890262776,-151.0,0.00020287,2]
[378512745,1754890262785,-157.576048,0.00020287,2]
[378512746,1754890262795,-157.576048,0.00020287,2]
[378512747,1754890262805,-205.0,0.00020287,2]
[378512748,1754890262814,-205.0,0.00020287,2]
[378512749,1754890262823,-205.0,0.00020287,2]
[378512750,1754890262833,-205.0,0.00020287,2]
[378512751,1754890262843,-213.0,0.00020287,2]
[378512752,1754890262853,-237.0,0.00020287,2]
[378512753,1754890262863,-237.0,0.00020287,2]
[378512754,1754890262873,-237.0,0.00020287,2]
[378512755,1754890262883,-237.0,0.00020287,2]
[378512756,1754890262894,-237.0,0.00020287,2]
[378512757,1754890262903,-213.0,0.00020287,2]
[378512758,1754890262913,-213.0,0.00020287,2]
[378512759,1754890262923,-205.0,0.00020287,2]
[378512760,1754890262932,-205.0,0.00020287,2]
[378512761,1754890262942,-205.0,0.00020287,2]
[378512762,1754890262952,-205.0,0.00020287,2]
[378512763,1754890262962,-213.0,0.00020287,2]
[378512764,1754890262972,-206.0,0.00020287,2]
[378512765,1754890262982,-206.0,0.00020287,2]
[378512766,1754890262991,-206.0,0.00020287,2]
[378512767,1754890263001,-213.0,0.00020287,2]
[378512768,1754890263012,-213.0,0.00020287,2]
[378512769,1754890263022,-213.0,0.00020287,2]
[378512770,1754890263032,-209.0,0.00020287,2]
[378512771,1754890263043,-209.0,0.00020287,2]
[378512772,1754890263053,-209.0,0.00020287,2]
[378512773,1754890263063,-209.0,0.00020287,2]
[378512774,1754890263073,-209.0,0.00020287,2]
[378512775,1754890263083,-209.0,0.00020287,2]
[378512776,1754890263092,-209.0,0.00020287,2]
[378512777,1754890263103,-209.0,0.00020287,2]
[378512778,1754890263113,-209.0,0.00020287,2]
[378512779,1754890263123,-209.0,0.00020287,2]
[378512780,1754890263132,-205.0,0.00020287,2]
[378512781,1754890263142,-1000.0,0.00020287,2]
[378512782,1754890263151,-1000.0,0.00020287,2]
[378512783,1754890263161,-1000.0,0.00020287,2]
[378512784,1754890263171,-1000.0,0.00020287,2]
[378512785,1754890263181,-1000.0,0.00020287,2]
[378512786,1754890263190,-1000.0,0.00020287,2]
[378512787,1754890263199,-1000.0,0.00020287,2]
[378512788,1754890263209,-1000.0,0.00020287,2]
[378512789,1754890263219,-1000.0,0.00020287,2]
[378512790,1754890263229,-1000.0,0.00020287,2]
[378512791,1754890263239,-1000.0,0.00020287,2]
[378512792,1754890263249,-1000.0,0.00020287,2]
[378512793,1754890263259,-1000.0,0.00020287,2]
[378512794,1754890263269,-1000.0,0.00020287,2]
[378512795,1754890263278,-1000.0,0.00020287,2]
[378512796,1754890263288,-1000.0,0.00020287,2]
[378512797,1754890263298,-1000.0,0.00020287,2]
[378512798,1754890263307,-1000.0,0.00020287,2]
[378512799,1754890263317,-1000.0,0.00020287,2]
[378512800,1754890263326,-1000.0,0.00020287,2]
[378512801,1754890263335,-1000.0,0.00020287,2]
[378512802,1754890263345,-965.59118852,0.00020287,2]
[378512803,1754890263354,-205.0,0.00020287,2]
[378512804,1754890263365,-205.0,0.00020287,2]
[378512805,1754890263374,-2719.3,0.00020287,2]
[378512806,1754890263383,-795.205187,0.00020287,2]
[378512807,1754890263393,-795.205187,0.00020287,2]
[378512808,1754890263402,-265.660647,0.00020287,2]
[378512809,1754890263412,-265.660647,0.00020287,2]
[378512810,1754890263422,-3542.702324,0.00020287,2]
[378512811,1754890263431,-3542.702324,0.00020287,2]
[378512812,1754890263440,-5000.0,0.0002029,2]
[378512813,1754890263450,-5000.0,0.00020294,2]
[378512814,1754890263459,-563.358369,0.00020294,2]
[378512815,1754890263469,-563.358369,0.00020294,2]
[378512816,1754890263479,-304.031542,0.00020294,2]
[378512817,1754890263488,-304.031542,0.00020294,2]
[378512818,1754890263498,-365.74410789,0.000203,2]
[378512819,1754890263507,-4433.38,0.00020304,2]
[378512820,1754890263516,-5000.0,0.00020314,2]
[378512821,1754890263526,-5000.0,0.00020337,2]
[378512822,1754890263535,-25000.0,0.00020342,2]
[378512823,1754890263545,-152.0,0.00020344,4]
[378512824,1754890263555,-2361.2,0.00020348,2]
[378512825,1754890263564,-3265.81632073,0.00020392,2]
[378512826,1754890263574,-445.966927,0.00020455,2]
[378512827,1754890263583,-445.966927,0.00020455,2]
[378512828,1754890263592,-445.966927,0.00020455,2]
[378512829,1754890263602,-445.966925,0.00020455,2]
[378512830,1754890263612,-296.068264,0.00020455,2]
[378512831,1754890263621,-296.068264,0.00020455,2]
[378512832,1754890263630,-296.068264,0.00020455,2]
[378512833,1754890263640,-296.068272,0.00020455,2]
[378512834,1754890263649,-151.0,0.00020455,2]
[378512835,1754890263659,-299.62599,0.00020455,2]
[378512836,1754890263673,-194.003862,0.00020455,2]
[378512837,1754890263682,-194.003862,0.00020455,2]
[378512838,1754890263692,-194.003862,0.00020455,2]
[378512839,1754890263702,-194.003869,0.00020455,2]
[378512840,1754890263713,-198.315148,0.00020455,2]
[378512841,1754890263722,-198.315148,0.00020455,2]
[378512842,1754890263731,-198.315148,0.00020455,2]
[378512843,1754890263741,-198.315145,0.00020455,2]
[378512844,1754890263752,-1731.537162,0.00020455,2]
[378512845,1754890263763,-1731.537162,0.00020455,2]
[378512846,1754890263772,-1731.537162,0.00020455,2]
[378512847,1754890263781,-1731.537161,0.00020455,2]
[378512848,1754890263791,-151.0,0.00020455,2]
[378512849,1754890263801,-151.0,0.00020455,2]
[378512850,1754890263810,-299.954703,0.00020455,2]
[378512851,1754890263820,-1223.075257,0.00020455,2]
[378512852,1754890263829,-1223.075259,0.00020455,2]
[378512853,1754890263838,-151.0,0.00020455,2]
[378512854,1754890263848,-194.623248,0.00020455,2]
[378512855,1754890263858,-195.474766,0.00020455,2]
[378512856,1754890263867,-195.474766,0.00020455,2]
[378512857,1754890263877,-195.474766,0.00020455,2]
[378512858,1754890263886,-195.474768,0.00020455,2]
[378512859,1754890263895,-151.0,0.00020455,2]
[378512860,1754890263905,-151.0,0.00020455,2]
[378512861,1754890263915,-151.0,0.00020455,2]
[378512862,1754890263925,-315.174228,0.00020456,2]
[378512863,1754890263934,-315.174228,0.00020456,2]
[378512864,1754890263944,-151.0,0.00020456,2]
[378512865,1754890263954,-151.0,0.00020456,2]
[378512866,1754890263963,-222.873055,0.00020456,2]
[378512867,1754890263972,-222.873064,0.00020456,2]
[378512868,1754890263982,-151.0,0.00020456,2]
[378512869,1754890263991,-151.0,0.00020456,2]
[378512870,1754890264001,-151.0,0.00020456,2]
[378512871,1754890264011,-151.0,0.00020456,2]
[378512872,1754890264021,-293.965612,0.00020456,2]
[378512873,1754890264032,-293.965603,0.00020456,2]
[378512874,1754890264041,-172.391236,0.00020456,2]
[378512875,1754890264051,-151.0,0.00020456,2]
[378512876,1754890264060,-151.0,0.00020456,2]
[378512877,1754890264070,-401.379728,0.00020456,2]
[378512878,1754890264080,-401.379728,0.00020456,2]
[378512879,1754890264089,-401.379728,0.00020456,2]
[378512880,1754890264099,-401.379734,0.00020456,2]
[378512881,1754890264108,-151.0,0.00020456,2]
[378512882,1754890264117,-151.0,0.00020456,2]
[378512883,1754890264127,-151.0,0.00020456,2]
[378512884,1754890264136,-159.231052,0.00020456,2]
[378512885,1754890264146,-196.625057,0.00020456,2]
[378512886,1754890264155,-196.625057,0.00020456,2]
[378512887,1754890264164,-196.625057,0.00020456,2]
[378512888,1754890264174,-196.625056,0.00020456,2]
[378512889,1754890264183,-688.960651,0.00020456,2]
[378512892,1754890264193,-688.960651,0.00020456,2]
[378512893,1754890264520,-388.703329,0.00020456,2]
[378512894,1754890264530,-388.703329,0.00020456,2]
[378512895,1754890264540,-151.0,0.00020456,2]
[378512896,1754890264549,-151.0,0.00020456,2]
[378512897,1754890264559,-274.765301,0.00020456,2]
[378512898,1754890264569,-274.765301,0.00020456,2]
[378512899,1754890264578,-230.660612,0.00020456,2]
[378512900,1754890264588,-230.660612,0.00020456,2]
[378512901,1754890264598,-3360.120026,0.00020456,2]
[378512902,1754890264614,-3360.120026,0.00020456,2]
[378512903,1754890264635,-1007.50392,0.00020456,2]
[378512904,1754890264644,-1013.752227,0.00020456,2]
[378512905,1754890264654,-1007.50392,0.00020456,2]
[378512906,1754890264663,-1013.752227,0.00020456,2]
[378512907,1754890264676,-151.0,0.00020456,2]
[378512908,1754890264686,-195.515282,0.00020456,2]
[378512909,1754890264695,-9253.5,0.0002048,2]
[378512910,1754890264705,-151.0,0.00020489,2]
[378512911,1754890264715,-289.858388,0.00020489,2]
[378512912,1754890264725,-289.858388,0.00020489,2]
[378512913,1754890264734,-151.0,0.00020493,2]
[378512915,1754890264745,-171.489833,0.00020493,2]
[378512916,1754890264754,-193.838935,0.00020494,2]
[378512917,1754890264766,-151.0,0.00020494,2]
[378512918,1754890264775,-732.263915,0.00020494,2]
[378512919,1754890264785,-732.263915,0.00020494,2]
[378512920,1754890264794,-151.0,0.00020494,2]
[378512921,1754890264804,-151.0,0.00020494,2]
[378512922,1754890264813,-165.353929,0.00020494,2]
[378512923,1754890264823,-165.353929,0.00020494,2]
[378512924,1754890264834,-151.0,0.00020494,2]
[378512925,1754890264843,-325.37,0.00020494,2]
[378512926,1754890264854,-151.0,0.00020494,2]
[378512927,1754890264864,-151.0,0.00020494,2]
[378512928,1754890264874,-151.0,0.00020494,2]
[378512929,1754890264884,-177.351646,0.00020494,2]
[378512930,1754890264894,-177.351646,0.00020494,2]
[378512931,1754890264903,-177.351646,0.00020494,2]
[378512932,1754890264914,-177.351646,0.00020494,2]
[378512933,1754890264924,-177.351646,0.00020494,2]
[378512934,1754890264933,-177.35165,0.00020494,2]
[378512935,1754890264943,-317.599438,0.00020494,2]
[378512936,1754890264952,-317.599438,0.00020494,2]
[378512937,1754890264961,-317.599438,0.00020494,2]
[378512938,1754890264971,-317.599438,0.00020494,2]
[378512939,1754890264980,-317.599438,0.00020494,2]
[378512940,1754890264990,-317.599439,0.00020494,2]
[378512942,1754890264999,-157.575299,0.00020494,2]
[378512943,1754890265010,-157.575299,0.00020494,2]
[378512944,1754890265019,-157.575299,0.00020494,2]
[378512945,1754890265029,-157.575299,0.00020494,2]
[378512946,1754890265038,-157.575299,0.00020494,2]
[378512947,1754890265047,-157.57529,0.00020494,2]
[378512948,1754890265057,-485.864058,0.00020494,2]
[378512949,1754890265066,-485.864058,0.00020494,2]
[378512950,1754890265075,-485.864058,0.00020494,2]
[378512951,1754890265087,-485.864058,0.00020494,2]
[378512952,1754890265096,-485.864058,0.00020494,2]
[378512953,1754890265106,-485.864068,0.00020494,2]
[378512954,1754890265115,-1013.0,0.000205,2]
[378512955,1754890265125,-520.801779,0.000205,2]
[378512956,1754890265134,-520.801779,0.000205,2]
[378512957,1754890265144,-151.0,0.000205,2]
[378512958,1754890265153,-151.0,0.00020516,2]
[378512959,1754890265162,-151.0,0.00020516,2]
[378512960,1754890265172,-214.056328,0.00020516,2]
[378512961,1754890265181,-964.98,0.00020526,2]
[378512962,1754890265190,-150.0,0.0002053,2]
[378512963,1754890265199,-1008.99,0.00020547,2]
[378512964,1754890265211,-21007.66,0.00020548,2]
[378512965,1754890265221,-253.657802,0.00020548,2]
[378512966,1754890265231,-151.0,0.00020548,2]
[378512968,1754890265240,-151.0,0.00020548,2]
[378512969,1754890265250,-289.858388,0.00020548,2]
[378512970,1754890265261,-289.858388,0.00020548,2]
[378512971,1754890265270,-516.224086,0.0002056,2]
[378512972,1754890265279,-516.224086,0.0002056,2]
[378512973,1754890265288,-516.224086,0.0002056,2]
[378512974,1754890265298,-516.224089,0.0002056,2]
[378512975,1754890265308,-348.307943,0.0002056,2]
[378512976,1754890265325,-348.307943,0.0002056,2]
[378512977,1754890265337,-5000.0,0.00020561,2]
[378512978,1754890265347,-193.838935,0.00020561,2]
[378512979,1754890265358,-193.838935,0.00020561,2]
[378512980,1754890265368,-193.838935,0.00020561,2]
[378512981,1754890265378,-193.838929,0.00020561,2]
[378512982,1754890265388,-193.68,0.00020561,2]
[378512983,1754890265398,-193.68,0.00020561,2]
[378512984,1754890265408,-279.392465,0.00020561,2]
[378512985,1754890265419,-279.392465,0.00020561,2]
[378512986,1754890265429,-151.0,0.00020561,2]
[378512987,1754890265440,-151.0,0.00020562,2]
[378512988,1754890265451,-330.223621,0.00020562,2]
[378512989,1754890265461,-330.223621,0.00020562,2]
[378512990,1754890265472,-151.0,0.00020562,2]
[378512991,1754890265484,-151.0,0.00020562,2]
[378512993,1754890265494,-151.0,0.00020562,2]
[378512994,1754890265504,-151.0,0.00020562,2]
[378512995,1754890265515,-337.972698,0.00020562,2]
[378512996,1754890265524,-337.972698,0.00020562,2]
[378512997,1754890265534,-1560.87,0.00020594,2]
[378512998,1754890265544,-474.0,0.0002062,2]
[378512999,1754890265554,-4725.55,0.0002062,2]
[378513000,1754890265564,-1002.84350291,0.00020632,2]
[378513001,1754890265574,-5000.0,0.00020648,2]
[378513002,1754890265584,-256.69318673,0.00020658,3]